Workbook

Sheet DISCLAIMER
B5: RF-Feedline System Loss Calculator (Transducer Power Loss)
B8: TLine Loss Calc is a Spreadsheet Workbook tool (shareware) for the computation
B9: of Losses in RF-Feedline Systems with Transmission Lines
B10: of real or complex Characteristic Impedance.
C13: Disclaimer
C14: The user of this software assumes all responsibility for applying the software and for any utilization of the results obtained.
C16: Comments, Error-Reports or Suggestions for improving the tool are welcome at
C17: info@rfclb.space
D20: © Copyright 2021-2023 – All rights reserved.

Sheet TL-System
B2: RF-Feedline System Loss Calculator (Transducer Power Loss)
B6: =IF(Network_In," SOURCE + 2-Port NETWORK", " SOURCE" ) -> SOURCE | E6: =IF(OR(NOT(ISNUMBER(E32)),NOT(ISNUMBER(E33))),"", IF(AND(ABS(E7-E15)<0.0001,ABS(E8-E16)<0.0001,ABS(E7-E32)<0.0001,ABS(E8+E33)<0.0001),"CCM, Γs=0", IF(AND(ABS(E7-E15)<0.0001,ABS(E8-E16)<0.0001),"Γs=0", IF(AND(ABS(E7-E32)<0.0001,ABS(E8+E33)<0.0001),"CCM", IF(AND(Supplement!H41=5,E16<>0),"≈ CCM", "" ) ) ) ) ) ->  | H6: Read Me First !
B7: Zs | C7: SOURCE IMPEDANCE, seen from TL, real, Rs | D7: Ω | E7: 50
C8: SOURCE IMPEDANCE, seen from TL, imag, Xs | D8: jΩ | E8: 0 | Q8: System
Q9: P2/Pmax:
B10: TRANSMISSION LINE (TL)
C11: PHYSICAL LENGTH, l feet | E11: 40 | Q11: =IF(ISNUMBER(E64),ROUND(-E64,2)&" dB", "< -100 dB" ) -> -2.05 dB
C12: RF-FREQUENCY, f MHz | E12: 3.5 | F12: =Supplement!H47 -> 1 | Q12: =IF(ISNUMBER(E64),"≡ "&ROUND(100*10^(-0.1*E64),2)&" %", "0 %" ) -> ≡ 62.34 %
C13: ATTENUATION, α dB/100ft | E13: 0.538 | Q13: U2/U1 :
B14: VELOCITY FACTOR, VF | E14: 0.802 | Q14: =IF(AND(SUMSQ((1+E23),E24)>0,SUMSQ((1+E28),E29)=0),">100 dB", IF(AND(SUMSQ((1+E23),E24)=0,SUMSQ((1+E28),E29)>0),0, IF(AND(SUMSQ((1+E23),E24)=0,SUMSQ((1+E28),E29)=0),"0/0", IF(E47=0,"<-100 dB", ROUND(20*LOG10(SQRT(E47*SUMSQ((1+E23),E24)/SUMSQ((1+E28),E29))),2)&" dB ," ) ) ) ) -> 0.82 dB ,
B15: Zo | C15: ="CHARACTERISTIC IMPEDANCE, real, Rₒ" -> CHARACTERISTIC IMPEDANCE, real, Rₒ | D15: Ω | E15: 50 | Q15: =IF(OR(Q14=">100 dB",Q14=0,Q14="0/0",Q14="<-100 dB"),"n/a", MOD(ROUND(MOD((-Beta_rad_per_m*Length_in_m + (IF(E24<0,2*PI(),0)+ATAN2((1+E23),E24))) - (IF(E29<0,2*PI(),0)+ATAN2((1+E28),E29)),-2*PI())/(2*PI()),11),-1) ) -> -0.05060677665 | R15: =IF(OR(Q14=">100 dB",Q14=0,Q14="0/0",Q14="<-100 dB"),"", "* 360ᵅ" ) -> * 360ᵅ
C16: =IF(Supplement!H44>999.999,"CHARACTERISTIC IMPEDANCE, imag, Xₒ", "CHARACTERISTIC IMPEDANCE, imag, |Xₒ|"&IF(OR(Alpha_Np_per_m=0,Beta_rad_per_m=0),"=","≤")&ROUNDDOWN(Supplement!H44,3)&" Ω" ) -> CHARACTERISTIC IMPEDANCE, imag, |Xₒ|≤1.11 Ω | D16: jΩ | E16: -1.1
B18: =IF(Network_Out," 2-Port NETWORK + LOAD", " LOAD" ) -> LOAD | E18: =IF(AND(ABS(E15-E19)<0.0001,ABS(E16-E20)<0.0001,ABS(E19-E43)<0.0001,ABS(E20+E44)<0.0001),"CCM, SWR=1:1", IF(AND(ABS(E15-E19)<0.0001,ABS(E16-E20)<0.0001),"SWR=1:1", IF(AND(ABS(E19-E43)<0.0001,ABS(E20+E44)<0.0001),"CCM", IF(AND(Supplement!H41=5,E16<>0),"≈ CCM", "" ) ) ) ) -> 
B19: ZL | C19: LOAD IMPEDANCE, seen from TL, real, RL | D19: Ω | E19: 50
C20: LOAD IMPEDANCE, seen from TL, imag, XL | D20: jΩ | E20: 75
B22: DETAILED RESULTS (Nominal Case)
B23: REFLECTION COEFFICIENT @ LOAD, real, Re(ΓL) | E23: =ROUND(IMREAL(IMDIV(COMPLEX(E19-E15,E20-E16), COMPLEX(E19+E15,E20+E16) ) ),IF(Dual_CCM,5,12) ) -> 0.3637354386
B24: REFLECTION COEFFICIENT @ LOAD, imag, Im(ΓL) | E24: =ROUND(IMAGINARY(IMDIV(COMPLEX(E19-E15,E20-E16), COMPLEX(E19+E15,E20+E16) ) ),IF(Dual_CCM,5,12) ) -> 0.4921995109
B25: REFLECTION COEFFICIENT @ LOAD, abs, |ΓL|=ρL | E25: =ROUND(SQRT(SUMSQ(E23:E24)),11) -> 0.612016199
B26: STANDING WAVE RATIO @ LOAD, SWRL | D26: :1 | E26: =IF(ABS(E25-1)>0.000002,ABS((1+E25)/ (1-E25) ), "> 1E6" ) -> 4.15485439 | R26: ="Transducer Loss " -> Transducer Loss
B28: REFLECTION COEFFICIENT @ TL-Input, real, Re(Γin) | E28: =ROUND(IMREAL(IMPRODUCT(COMPLEX(E23,E24), IMEXP(COMPLEX(-2*Alpha_Np_per_m*Length_in_m,-2*Beta_rad_per_m*Length_in_m) ) ) ),IF(Dual_CCM,4,11) ) -> 0.1580990501 | R28: ="has been stored " -> has been stored
B29: REFLECTION COEFFICIENT @ TL-Input, imag, Im(Γin) | E29: =ROUND(IMAGINARY(IMPRODUCT(COMPLEX(E23,E24), IMEXP(COMPLEX(-2*Alpha_Np_per_m*Length_in_m,-2*Beta_rad_per_m*Length_in_m) ) ) ),IF(Dual_CCM,4,11) ) -> -0.5605605366 | R29: ="(red dashed line) " -> (red dashed line)
B30: REFLECTION COEFFICIENT @ TL-Input, abs, |Γin|=ρin | E30: =ROUND(SQRT(SUMSQ(E28:E29)),11) -> 0.5824289011
B32: TRANSMISSION LINE INPUT IMPEDANCE, real, Rin | D32: Ω | E32: =IF(AND(E28=1,E29=0),"infinite", IF(AND(OR(E11<Epsilon,E13=0),E19=0),0, ROUND(IMREAL(IMPRODUCT(COMPLEX(E15,E16), IMDIV(COMPLEX(1+E28,E29), COMPLEX(1-E28,-E29) ) ) ),IF(Dual_CCM,3,10) ) ) ) -> 31.08974412
B33: TRANSMISSION LINE INPUT IMPEDANCE, imag, Xin | D33: jΩ | E33: =IF(AND(E28=1,E29=0),"infinite", ROUND(IMAGINARY(IMPRODUCT(COMPLEX(E15,E16), IMDIV(COMPLEX(1+E28,E29), COMPLEX(1-E28,-E29) ) ) ),IF(Dual_CCM,3,10) ) ) -> -55.50488979
B35: REFLECTION COEFFICIENT @ SOURCE, real, Re(Γs) | E35: =ROUND(IMREAL(IMDIV(COMPLEX(E7-E15,E8-E16), COMPLEX(E7+E15,E8+E16) ) ),IF(Dual_CCM,5,12) ) -> -0.000120985361
B36: REFLECTION COEFFICIENT @ SOURCE, imag, Im(Γs) | E36: =ROUND(IMAGINARY(IMDIV(COMPLEX(E7-E15,E8-E16), COMPLEX(E7+E15,E8+E16) ) ),IF(Dual_CCM,5,12) ) -> 0.01099866916
B37: REFLECTION COEFFICIENT @ SOURCE, abs, |Γs|=ρs | E37: =SQRT(SUMSQ(E35:E36)) -> 0.01099933456
B39: REFLECTION COEFFICIENT @ TL-Output, real, Re(Γout) | E39: =ROUND(IMREAL(IMPRODUCT(COMPLEX(E35,E36), IMEXP(COMPLEX(-2*Alpha_Np_per_m*Length_in_m,-2*Beta_rad_per_m*Length_in_m) ) ) ),IF(Dual_CCM,4,11) ) -> 0.00834271841
B40: REFLECTION COEFFICIENT @ TL-Output, imag, Im(Γout) | E40: =ROUND(IMAGINARY(IMPRODUCT(COMPLEX(E35,E36), IMEXP(COMPLEX(-2*Alpha_Np_per_m*Length_in_m,-2*Beta_rad_per_m*Length_in_m) ) ) ),IF(Dual_CCM,4,11) ) -> -0.00632213118
B41: REFLECTION COEFFICIENT @ TL-Output, abs, |Γout|=ρout | E41: =SQRT(SUMSQ(E39:E40)) -> 0.01046758296
B43: TRANSMISSION LINE OUTPUT IMPEDANCE, real, Rout | D43: Ω | E43: =ROUND(IMREAL(IMPRODUCT(COMPLEX(E15,E16), IMDIV(COMPLEX(1+E39,E40), COMPLEX(1-E39,-E40) ) ) ),IF(Dual_CCM,3,10) ) -> 50.82304887
B44: TRANSMISSION LINE OUTPUT IMPEDANCE, imag, Xout | D44: jΩ | E44: =ROUND(IMAGINARY(IMPRODUCT(COMPLEX(E15,E16), IMDIV(COMPLEX(1+E39,E40), COMPLEX(1-E39,-E40) ) ) ),IF(Dual_CCM,3,10) ) -> -1.761287457
B46: EFFICIENCIES & LOSSES | S46: =IF(AND(E11>0,OR(Supplement!H41=1,Supplement!H41=2),Supplement!H45,Supplement!H48)," (CCM)", IF(AND(E11>0,OR(AND(Supplement!H41=1,OR(E18="SWR=1:1",E18="CCM, SWR=1:1")),AND(Supplement!H41=2,OR(E6="SWR=1:1",E6="CCM, SWR=1:1"))),Supplement!H45,Supplement!H48=FALSE)," (CCM)", IF(AND(OR(Supplement!H41=1,Supplement!H41=2),Supplement!H45,Supplement!H48=FALSE,Supplement!P195<>" ")," (CCM @ •)", IF(AND(E11>0,OR(Supplement!H41=3,Supplement!H41=4,AND(Supplement!H41=5,E16=0)),Supplement!H45)," (CCM)", IF(AND(Supplement!H41=5,E16<>0,Supplement!H45)," (CCM @ •)", "" ) ) ) ) ) -> 
B47: MATCHED LINE EFFICIENCY (ΓL=0), η1 | E47: =EXP(-2*Alpha_Np_per_m*Length_in_m) -> 0.9516560217 | G47: =IF(F12=0," Inconsistent TL-Parameter Values. No Diagram. ", " Transducer Power Loss "&IF(E64="> 100","> 100dB (No Diagram)", IF(AND(ROUND(E64,2)=0,E63<1),"≈ ","= ")&ROUND(E64,2)&"dB"&" ("&IF(AND(ROUND(E64,2)=0,E63<1),"≈","")&ROUND(100*(1-E63),1)&"% of Pmax)" ) ) -> Transducer Power Loss = 2.05dB (37.7% of Pmax)
B48: MATCHED LINE LOSS (MLL) | D48: dB | E48: =IF(E47<Epsilon,"> 100", -10*LOG10(E47) ) -> 0.2152 | S48: Read Me
B50: SWR-INDUCED SCALING of MATCHED LINE EFFICIENCY, δ2 | E50: =IF(OR(E13=0, AND(E16=0,E30=1), AND(E24=0,E25=1,E29=0,E30=1) ),1, ROUND((1 - (E25^2) - 2*(E16/E15)*E24) / (1 - (E30^2) - 2*(E16/E15)*E29),11 ) ) -> 1.017262747
B51: =IF(E50>1," SWR-INDUCED DELTA wrt. Matched Case", " SWR ADDITIONAL LOSS" ) -> SWR-INDUCED DELTA wrt. Matched Case | D51: dB | E51: =IF(E50<Epsilon,"> 100", -10*LOG10(E50) ) -> -0.07433140691 | G51: Impedance Matching
B53: TOTAL LINE EFFICIENCY, (P2/P1)=η1δ2 | E53: =E47*E50 -> 0.9680842191
B54: TOTAL LINE LOSS, (P2/P1) | D54: dB | E54: =IF(E53<Epsilon,"> 100", -10*LOG10(E53) ) -> 0.1408685931
B56: IMPEDANCE MISMATCH FACTOR, (P1/Pmax)=η3 | E56: =IF(OR(E32=0,NOT(ISNUMBER(E32))),0, ROUND((4*E7*E32) / SUMSQ(E7+E32,E8+E33), IF(Dual_CCM,4,11) ) ) -> 0.6439240143
B57: IMPEDANCE MISMATCH LOSS, (P1/Pmax) | D57: dB | E57: =IF(E56<Epsilon,"> 100", -10*LOG10(E56) ) -> 1.911653782
B59: POWER DISSIPATED in TRANSMISSION LINE, (PTL/Pmax) | E59: =IF(AND(E56<>E63,ROUND(100*(E56-E63),1)=0),"≈ ", "" )&ROUND(100*(E56-E63),1)&" %" -> 2.1 % | K59: ="→ Read Me " -> → Read Me
B60: POWER DISSIPATED in TRANSMISSION LINE, (PTL/P1) | E60: =IF(E56=0,"P1=PTL=0", IF(AND(E53<1,ROUND(100*(1-E53),1)=0),"≈ ", "" ) &ROUND(100*(1-E53),1)&" %" ) -> 3.2 %
B61: (EXCESS-POWER @ TL-Input)/Pmax , see comment | E61: =IF(E56*SUMSQ(E7+E15,E8+E16)>(4*E7*E15),"+ ", IF(E56*SUMSQ(E7+E15,E8+E16)<(4*E7*E15),"- ", "+/- " ) )&ROUND(100*ABS(E56-((4*E7*E15)/ SUMSQ(E7+E15,E8+E16) ) ),1 )&" %" -> - 35.6 %
B63: TRANSDUCER POWER EFFICIENCY, (P2/Pmax)=η=η1δ2η3 | E63: =E47*E50*E56 -> 0.6233726765
B64: TRANSDUCER POWER LOSS, (P2/Pmax) | D64: dB | E64: =IF(E63<Epsilon,"> 100", -10*LOG10(E63) ) -> 2.052522375
B66: SUPPLEMENTARY RESULTS (for real Characteristic Impedance, Xo=0)
B67: Transducer Power Efficiency,(P2/Pmax)=η(Xo=0) | E67: =IF(E19=0,0, ROUND( E47 * (1-(IMABS(IMDIV(COMPLEX(E7-E15,E8-0),COMPLEX(E7+E15,E8+0))) )^2 ) * (1-(IMABS(IMDIV(COMPLEX(E19-E15,E20-0),COMPLEX(E19+E15,E20+0))) )^2 ) / ((IMABS(IMSUM(COMPLEX(-1,0), IMPRODUCT(IMEXP(COMPLEX(-2*Alpha_Np_per_m*Length_in_m,-2*Beta_rad_per_m*Length_in_m)), IMDIV(COMPLEX(E7-E15,E8-0),COMPLEX(E7+E15,E8+0)), IMDIV(COMPLEX(E19-E15,E20-0),COMPLEX(E19+E15,E20+0)) ) ) ) )^2 ), 11 ) ) -> 0.6090598539
B68: Transducer Power Loss,(P2/Pmax) | D68: dB | E68: =IF(E67=0,"P2 = 0", IF(E67<Epsilon,"> 100", -10*LOG10(E67) ) ) -> 2.15340026
B69: Available Power-Efficiency,(P2,max/Pmax) | E69: =ROUND( E47 * (1-(IMABS(IMDIV(COMPLEX(E7-E15,E8-0),COMPLEX(E7+E15,E8+0))) )^2 ) / (1-(IMABS(IMPRODUCT(IMEXP(COMPLEX(-2*Alpha_Np_per_m*Length_in_m,-2*Beta_rad_per_m*Length_in_m)), IMDIV(COMPLEX(E7-E15,E8-0),COMPLEX(E7+E15,E8+0)) ) ) )^2 ), 11 ) -> 0.9516560217
B70: Available Power-Efficiency, as Loss,(P2,max/Pmax) | D70: dB | E70: =IF(E69<Epsilon,"> 100", -10*LOG10(E69) ) -> 0.2152
B71: Available Efficiency,(P2/P1,max) | E71: =ROUND( E47 * (1-(IMABS(IMDIV(COMPLEX(E19-E15,E20-0),COMPLEX(E19+E15,E20+0))) )^2 ) / (1-(IMABS(IMPRODUCT(IMEXP(COMPLEX(-2*Alpha_Np_per_m*Length_in_m,-2*Beta_rad_per_m*Length_in_m)), IMDIV(COMPLEX(E19-E15,E20-0),COMPLEX(E19+E15,E20+0)) ) ) )^2 ), 11 ) -> 0.9036948278 | S71: Read Me
B72: Available Efficiency, as Loss,(P2/P1,max) | D72: dB | E72: =IF(E71=0,"P2 = 0", IF(E71<Epsilon,"> 100", -10*LOG10(E71) ) ) -> 0.4397820334 | G72: =IF(AND(Network_In=FALSE,Network_Out=FALSE,Supplement!H41<>0),"Selected Impedance Matching does not require Impedance Match Network.", IF(AND(OR(Network_In,Network_Out),Supplement!H41<>0,ISNUMBER(E64),ISNUMBER(Supplement!I41))," Matching Figure-of-Merit (Nominal Case) = "&ROUND(Supplement!I41-E64,2)&" dB", "" ) ) -> 
B73: Insertion Power-Ratio,(P2,with TL/P2,w/o TL) | E73: =IF(E19>0,ROUND(E67/ ((4*E7*E19) / SUMSQ(E7+E19,E8+E20)), 11 ), "P2 = 0" ) -> 0.9516560217
B74: Insertion Power-Ratio,(P2,with TL/P2,w/o TL) | D74: dB | E74: =IF(NOT(ISNUMBER(E73)),"P2 = 0", IF(E73<Epsilon,"< -100", 10*LOG10(E73) ) ) -> -0.2152 | N74: Rev. 1.5.2β
C151: =MAX($E$63) -> 0.6233726765
C152: =COUNT($E$7,$E$8) -> 2
C153: =$E$63<=1 -> TRUE
C154: =$E$63>=0 -> TRUE
C155: =$E$7>=0.001 -> TRUE
C156: ={32767,32767,0.000001,1,FALSE,FALSE,FALSE,1,2,1,0.0001,FALSE} -> 32767
C157: ={0,0,1,100,0,FALSE,FALSE,0.075,0,0,FALSE,30} -> 0

Sheet TL-Parameters
B2: Transmission Line Characteristics obtained from Measurements
B4: Transmission Line (TL) Characteristics obtained | H4: Conversion Tool
B5: from two Input-Impedance Measurements of TL with cable-end shorted/opened | H5: s11 (50Ω) measured → Z = Rin + jXin
B6: ="Transmission Line (TL)" -> Transmission Line (TL) | H6: |s11|=ρ=|Γin|, abs | K6: 0.894
C7: PHYSICAL LENGTH, l feet | E7: 100 | H7: s11, angle φ | J7: deg | K7: -139.31 | L7: =IF(AND(ABS(K7)>=45,ABS(K7)<=135),1,0) -> 0
C8: RF-FREQUENCY, f MHz | E8: 3.5 | G8: 1 & 2 | H8: Real(Z), Rin | J8: Ω | K8: =IF(AND(K6=1,K7=0),"infinite", 50*IMREAL(IMDIV(COMPLEX(1+K6*COS(RADIANS(K7)),K6*SIN(RADIANS(K7))), COMPLEX(1-K6*COS(RADIANS(K7)),-K6*SIN(RADIANS(K7))) ) ) ) -> 3.181696342
B9: ="TL with cable-end shorted" -> TL with cable-end shorted | H9: Imag(Z), Xin | J9: jΩ | K9: =IF(AND(K6=1,K7=0),"infinite", 50*IMAGINARY(IMDIV(COMPLEX(1+K6*COS(RADIANS(K7)),K6*SIN(RADIANS(K7))), COMPLEX(1-K6*COS(RADIANS(K7)),-K6*SIN(RADIANS(K7))) ) ) ) -> -18.47418978
B10: Zshort | C10: TL INPUT IMPEDANCE, Real(Zin), Rin | D10: Ω | E10: 3.5 | F10: 1
C11: TL INPUT IMPEDANCE, Imag(Zin), Xin | D11: jΩ | E11: -18.47418978
B12: ="TL with cable-end opened" -> TL with cable-end opened | H12: RETURN LOSS, RL | J12: dB | K12: =IF(K6>0,-20*LOG10(K6), "infinite" ) -> 0.9732496241
B13: Zopen | C13: TL INPUT IMPEDANCE, Real(Zin), Rin | D13: Ω | E13: 29.95 | F13: 2
C14: TL INPUT IMPEDANCE, Imag(Zin), Xin | D14: jΩ | E14: 136.38
B15: Read Me | H15: Transmission Line Attenuation, obtained from
B16: ="RESULTS: TL-Parameter Values at "&ROUND(E8,2)&"MHz" -> RESULTS: TL-Parameter Values at 3.5MHz | H16: measured Return Loss for Line Shorted/Opened
B17: Zo | C17: CHARACTERISTIC IMPEDANCE, Real(Zₒ), Rₒ | D17: Ω | E17: =IMREAL(IMSQRT(IMPRODUCT(COMPLEX(E10,E11),COMPLEX(E13,E14)))) -> 51.23362876
C18: CHARACTERISTIC IMPEDANCE, Imag(Zₒ), Xₒ | D18: jΩ | E18: =ROUND(IMAGINARY(IMSQRT(IMPRODUCT(COMPLEX(E10,E11),COMPLEX(E13,E14)))),12) -> -0.7414269272 | H18: RETURN LOSS, RL | J18: dB | K18: 0.9732496241
B19: γ | C19: MATCHED LINE LOSS, ATTENUATION, α | D19: =CHOOSE(MATCH(C7,Supplement!G84:G85,0),"dB/100m ","dB/100ft ") -> dB/100ft | E19: =IF(ISNUMBER(F19),F19*(8.686*(100/E7)),"") -> 0.5659681412 | F19: =IFERROR(0.5*IMREAL(IMSUB(IMLN(IMSUM(COMPLEX(1,0),IMSQRT(IMDIV(COMPLEX(E10,E11), COMPLEX(E13,E14) ) ) ) ), IMLN(IMSUB(COMPLEX(1,0),IMSQRT(IMDIV(COMPLEX(E10,E11), COMPLEX(E13,E14) ) ) ) ) ) ), "" ) -> 0.06515866236 | H19: ATTENUATION, a | J19: dB | K19: =8.686*K18/(40*LOG10(EXP(1))) -> 0.486630995
C20: VELOCITY FACTOR, VF (principal value #0) | E20: =IFERROR(F22/(F21+(IF(F22<F21,0,ROUNDUP((F22-F21)/PI(),0))+0)*PI()),"") -> 0.7999655335 | F20: =IFERROR(0.5*IMAGINARY(IMSUB(IMLN(IMSUM(COMPLEX(1,0),IMSQRT(IMDIV(COMPLEX(E10,E11), COMPLEX(E13,E14) ) ) ) ), IMLN(IMSUB(COMPLEX(1,0),IMSQRT(IMDIV(COMPLEX(E10,E11), COMPLEX(E13,E14) ) ) ) ) ) ), "" ) -> -0.3466629025 | H20: PHYSICAL LENGTH, l feet | K20: 100
E21: =IF(OR(E17<0,E11*E14>0),3, IF(ABS(E18)>E17*IF(OR(Supplement!H86=0,Supplement!H87=0),0,MIN(Supplement!H86/Supplement!H87,Supplement!H87/Supplement!H86)),2, 1 ) ) -> 1 | F21: =IF(ISNUMBER(F20),F20 + IF(F20<0,PI(),0), "" ) -> 2.794929751 | H21: ATTENUATION, α | J21: =CHOOSE(MATCH(H20,Supplement!G95:G96,0),"dB/100m ","dB/100ft ") -> dB/100ft | K21: =IFERROR(100*(K19/K20),"") -> 0.486630995
F22: =(2*PI()*E8*1000000)*(E7*CHOOSE(MATCH(C7,Supplement!G84:G85,0),1,0.3048)/299792458) +N("This is the Cable-Length in rad, at VF=1.") -> 2.235847469
C23: =IF(Supplement!H91=FALSE," VELOCITY FACTOR, VF (alternative value #1) ","") ->  | E23: =IFERROR(F22/(F21+(IF(F22<F21,0,ROUNDUP((F22-F21)/PI(),0))+1)*PI()),"") -> 0.3766257949
C24: =IF(Supplement!H92=FALSE," VELOCITY FACTOR, VF (alternative value #2) ","") ->  | E24: =IFERROR(F22/(F21+(IF(F22<F21,0,ROUNDUP((F22-F21)/PI(),0))+2)*PI()),"") -> 0.2462898361
C25: VELOCITY FACTOR, VF (alternative value #K), K= | D25: 0 | E25: =IFERROR(F22/(F21+(IF(F22<F21,0,ROUNDUP((F22-F21)/PI(),0))+D25)*PI()),"") -> 0.7999655335
B27: =CHOOSE(E21,"", "The entered Impedance values are inconsistent, or too inaccurate, to imply a complete set of", "The entered Impedance values are inconsistent to obtain TL-Parameter values." ) -> 
B28: =CHOOSE(E21,"", "valid TL values. After 'Copy → TL-System,' the TL values can there be adjusted for consistency.", "" ) -> 

Sheet Supplement
AB1: For Information Only: Applied Equations.
Y4: Read Disclaimer
AP5: References
AP7: William T. Joines, W. D. Palmer, Jennifer T. Bernhard, "Microwave Transmission Line
AP8: Circuits." Artech House, Norwood, 2013.
AP9: Dylan Williams, "Traveling Waves and Power Waves," IEEE Microwave Magazine, November/December 2013,
AP10: pp. 38-45, November/December 2013.
AP11: Shuhei Amakawa, "Scattered Reflections on Scattering Parameters - Demystifying
AP12: Complex-Referenced S Parameters," IEICE Trans. Electron.,Vol. E99-C, No. 10, Oct 2016.
AP13: Luitjens Popken, "Das hartnäckige Mysterium der „Totalreflexion“ auf HF-Leitungen,"
AP14: (in German), Issue 1, Rev. 2, May 2021.
AP15: Jim Stiles, "Matching with lumped elements," Department of Electrical Engineering and
G16: Worksheet "TL-System" Support | AP16: Computer Science. EECS 723 - Microwave Engineering - course handout, Univ. Kansas.
G17: ELECTRICAL LENGTH (length/λ) | AP17: Train your Critical Reading:
G18: ELECTRICAL LENGTH deg | AP18: M. Walter Maxwell, "Another Look at Reflections," QST Magazine, ARRL, Part 1,
G19: PHYSICAL LENGTH, l m | AP19: April 1973, pp. 35-41; Part 2, June 1973, pp. 20-27; Part 3, Aug. 1973, pp. 36-43;
G20: PHYSICAL LENGTH, l feet | H20: TL Physical Length: | AP20: Part 4, Oct. 1973, pp. 22-29; Part 5, April 1974, pp. 26-29, 160-165; Part 6, Dec. 1974,
G21: PROPAGAT. DELAY, T nsec | H21: ='TL-System'!E11 *IF(MATCH('TL-System'!C11,G17:G21,0)<3,CHOOSE(MATCH('TL-System'!C12,G26:G32,0),IF(MATCH('TL-System'!C11,G17:G21,0)=2,(1/360),1)*299.792458*'TL-System'!E14/'TL-System'!E12, 'TL-System'!E12, 'TL-System'!E12*0.3048, 2*PI()/'TL-System'!E12, 2*PI()*0.3048/'TL-System'!E12, 360/'TL-System'!E12, 360*0.3048/'TL-System'!E12 ),CHOOSE(MATCH('TL-System'!C11,G17:G21,0)-2,1, 0.3048, 0.299792458*'TL-System'!E14) ) -> 12.192 | AP21: pp. 11-14, 158-166; Part 7, Aug. 1976, pp. 15-20.
G22: ATTENUATION, α dB/100m | AP22: "Technical Correspondence - Corrections to Another Look at Reflections," QST, Aug.
G23: ATTENUATION, α dB/100ft | AP23: 1991, p. 42.
G24: ATTENUATION, α Np/100m | H24: Attenuation a: | AP24: Tools for the Design of Impedance Match Circuits:
G25: ATTENUATION, α Np/100ft | H25: =CHOOSE(MATCH('TL-System'!C13,G22:G25,0),0.01*'TL-System'!E13*(0.05*LN(10)), 0.01*'TL-System'!E13*(0.05*LN(10))*(1/0.3048), 0.01*'TL-System'!E13, 0.01*'TL-System'!E13*(1/0.3048) ) -> 0.002032137106 | AP25: F. Dellsperger, Smith-Chart Software and related Documents, "Smith V4.1",
G26: RF-FREQUENCY, f MHz | AP26: January 2018.
G27: ELECTRICAL WAVELENGTH, λ m | AP27: Analog Devices, RF Impedance Matching Calculator.
G28: ELECTRICAL WAVELENGTH, λ feet
G29: PHASE CONSTANT, ß rad/m | AO29: Ref. Numbers [1] to [8] are clickable and include Hyperlinks to publications or software.
G30: PHASE CONSTANT, ß rad/foot
G31: PHASE CONSTANT, ß deg/m | H31: Phase Constant b: | AV31: Status: January 2023
G32: PHASE CONSTANT, ß deg/foot | H32: =CHOOSE(MATCH('TL-System'!C12,G26:G32,0),(2*PI()*'TL-System'!E12)/(299.792458*'TL-System'!E14), (2*PI())/('TL-System'!E12+IF('TL-System'!E12=0,0.000001,0)), (2*PI())/(('TL-System'!E12+IF('TL-System'!E12=0,0.000001,0))*0.3048), 'TL-System'!E12, 'TL-System'!E12/0.3048, RADIANS('TL-System'!E12), RADIANS('TL-System'!E12)/0.3048 ) -> 0.09146455831
G33: Date:
G34: =IF(AND(H45=TRUE,ISNUMBER('TL-System'!E64)), IF('TL-System'!E50<=1,IF('TL-System'!E47=1," ", " Matched Line Loss" ), " Total Line Loss" ), "" ) -> Total Line Loss | H34: =IF(OR('TL-System'!F12=0,NOT(ISNUMBER('TL-System'!E48)),NOT(ISNUMBER('TL-System'!E64)),'TL-System'!E64=0), #N/A, IF('TL-System'!E50<=1,IF(AND('TL-System'!E48>0,'TL-System'!E48/('TL-System'!E64)>=0.005),'TL-System'!E48, #N/A ), IF(ISNUMBER('TL-System'!E54),IF(AND('TL-System'!E54>0,'TL-System'!E54/('TL-System'!E64)>=0.005),'TL-System'!E54, #N/A ), #N/A ) ) ) -> 0.1408685931 | I34: Pie-Plot
G35: =IF(OR(H45=FALSE,NOT(ISNUMBER('TL-System'!E64)),'TL-System'!E56=1),"", " Impedance Mismatch Loss" ) -> Impedance Mismatch Loss | H35: =IF(OR('TL-System'!F12=0,NOT(ISNUMBER('TL-System'!E57)),NOT(ISNUMBER('TL-System'!E64)),'TL-System'!E64=0), #N/A, IF(AND('TL-System'!E57>0,'TL-System'!E57/('TL-System'!E64)>=0.005),'TL-System'!E57, #N/A ) ) -> 1.911653782 | I35: Pie-Plot
G36: =IF(AND(H45=TRUE,ISNUMBER('TL-System'!E64),'TL-System'!E50<1)," SWR Additional Loss", "" ) ->  | H36: =IF(OR('TL-System'!F12=0,NOT(ISNUMBER('TL-System'!E51)),NOT(ISNUMBER('TL-System'!E64)),'TL-System'!E64=0), #N/A, IF('TL-System'!E50<=1,IF(ISNUMBER('TL-System'!E51),IF(AND('TL-System'!E51>0,'TL-System'!E51/('TL-System'!E64)>=0.005),'TL-System'!E51, #N/A ), #N/A ), #N/A ) ) ->  | I36: Pie-Plot
G37: Switch for Transducer Plot: | H37: 1
H38: =CHOOSE(H37,0, IF(AND('TL-System'!E16<>0,Alpha_Np_per_m>0),MIN((ABS('TL-System'!E16)/'TL-System'!E15)*(Beta_rad_per_m/Alpha_Np_per_m),1 ), 0 ) ) -> 0 | I38: =CHOOSE(H37,2, IF(AND('TL-System'!E16<>0,Alpha_Np_per_m>0),MIN(('TL-System'!E15/ABS('TL-System'!E16))*(Beta_rad_per_m/Alpha_Np_per_m),2 ), 2 ) ) -> 2
G39: Buffers Rs, Xs | H39: 50 | I39: 0
G40: Buffers: RL, XL | H40: 50 | I40: 75
G41: Selector of Matching-Case, (0), (1) to (8) | H41: 0 | I41: 2.052522375
G42: Font_Counter | H42: 1
G43: "Auto"-Switch | H43: FALSE | I43: 0
G44: Transmission Line Input Parameters Consistency Check | H44: ='TL-System'!E15*IF(OR(Alpha_Np_per_m=0,Beta_rad_per_m=0),0, MIN(Alpha_Np_per_m/Beta_rad_per_m,Beta_rad_per_m/Alpha_Np_per_m) ) -> 1.110887727
G45: Input-Parameter Check | H45: =ABS('TL-System'!E16)<='TL-System'!E15*IF(OR(Alpha_Np_per_m=0,Beta_rad_per_m=0),0, MIN(Alpha_Np_per_m/Beta_rad_per_m,Beta_rad_per_m/Alpha_Np_per_m) ) -> TRUE
G46: Plot-Check, Count of Inconsistencies | H46: =CHOOSE(H37,COUNTIF(N201:N401,">1.005")+COUNTIF(N201:N401,"<-0.005"), 0 ) -> 0
G47: Criterion for Flag-Color | H47: =IF(H45=FALSE,0,1) -> 1
G48: CCM applies at all values of length/attenuation | H48: TRUE
G49: Excel Add-in SOLVER installed | H49: FALSE | I49: =AND(H49,H41=5,'TL-System'!H16<>0) -> FALSE
G50: 2-Port Network Presence @ Input/Output | H50: FALSE | I50: FALSE
G51: Feedline System Information (User Form), Tabs 1 & 2 | H51: FALSE | I51: FALSE
G52: RF-Frequency, f MHz | H52: =Beta_rad_per_m*299.792458*'TL-System'!E14/(2*PI()) -> 3.5
G53: Series Resistance, R | H53: =IF(Alpha_Np_per_m*'TL-System'!E15<Beta_rad_per_m*'TL-System'!E16,"inconsistent!", ROUND(1000*(Alpha_Np_per_m*'TL-System'!E15-Beta_rad_per_m*'TL-System'!E16)*IF(H51,0.3048,1),3)&IF(H51," mΩ/ft"," mΩ/m") ) -> 202.218 mΩ/m
G54: Series Inductance, L | H54: =IF(Beta_rad_per_m*'TL-System'!E15<-Alpha_Np_per_m*'TL-System'!E16,"inconsistent!", IFERROR(ROUND((1000000000*(Beta_rad_per_m*'TL-System'!E15+Alpha_Np_per_m*'TL-System'!E16)/(2*PI()*(1000000*H52)))*IF(H51,0.3048,1),3)&IF(H51," nH/ft"," nH/m"), "undefined" ) ) -> 207.856 nH/m
G55: Shunt Conductance, G | H55: =IF(Alpha_Np_per_m*'TL-System'!E15<-Beta_rad_per_m*'TL-System'!E16,"inconsistent!", ROUND(1000000*(Alpha_Np_per_m*'TL-System'!E15+Beta_rad_per_m*'TL-System'!E16)/SUMSQ('TL-System'!E15,'TL-System'!E16)*IF(H51,0.3048,1),3)&IF(H51," μS/ft"," μS/m") ) -> 0.398 μS/m
G56: Shunt Capacitance, C | H56: =IF(Beta_rad_per_m*'TL-System'!E15<Alpha_Np_per_m*'TL-System'!E16,"inconsistent!", IFERROR(ROUND((1000000000000*(Beta_rad_per_m*'TL-System'!E15-Alpha_Np_per_m*'TL-System'!E16)/(2*PI()*(1000000*H52)*SUMSQ('TL-System'!E15,'TL-System'!E16)))*IF(H51,0.3048,1),3)&IF(H51," pF/ft"," pF/m"), "undefined" ) ) -> 83.183 pF/m
G57: =IF(H47=0,"", IF(Alpha_Np_per_m=0,"Lossless Transmission Line", IF(AND(Beta_rad_per_m*'TL-System'!E15>Alpha_Np_per_m*'TL-System'!E16,'TL-System'!E16>0),"Dielectric Loss dominates.", IF(AND(Alpha_Np_per_m*'TL-System'!E15>-Beta_rad_per_m*'TL-System'!E16,'TL-System'!E16<0),"Ohmic Loss dominates.", "Ohmic Loss = Dielectric Loss (Heaviside TL)" ) ) ) ) -> Ohmic Loss dominates.
G58: Reflection Coefficient @ TL Input, abs, |Γin|=ρin | H58: =ROUND('TL-System'!E30,3) -> 0.582 | AB58: For Information Only: Applied Equations.
G59: Reflection Coefficient @ Load, abs, |ΓL|=ρL | H59: =ROUND('TL-System'!E25,3) -> 0.612
G60: Reflection Coefficient @ TL Input, angle | H60: =IF(AND('TL-System'!E28=0,'TL-System'!E29=0),"n/a", ROUND(ATAN2('TL-System'!E28,'TL-System'!E29)*(180/PI()),1 )&"°" ) -> -74.2°
G61: Reflection Coefficient @ Load, angle | H61: =IF(AND('TL-System'!E23=0,'TL-System'!E24=0),"n/a", ROUND(ATAN2('TL-System'!E23,'TL-System'!E24)*(180/PI()),1 )&"°" ) -> 53.5°
G62: Standing Wave Ratio @ TL Input, SWRin | H62: =IF(ABS('TL-System'!E30-1)>0.000002,ROUND(ABS((1+'TL-System'!E30)/ (1-'TL-System'!E30) ),2 )&":1", ">1E6 :1" ) -> 3.79:1
G63: Standing Wave Ratio @ Load, SWRL | H63: =IF(ISNUMBER('TL-System'!E26),ROUND('TL-System'!E26,2)&":1", ">1E6 :1" ) -> 4.15:1
G64: Return Loss @ TL Input | H64: =IF(H58>1,"|Γ|>1", IF(H58>0,ROUND(-20*LOG10(H58),2)&"dB", "∞ dB" ) ) -> 4.7dB
G65: Return Loss @ Load | H65: =IF(H59>1,"|Γ|>1", IF(H59>0,ROUND(-20*LOG10(H59),2)&"dB", "∞ dB" ) ) -> 4.26dB
G66: Impedance Mismatch Loss @ TL Input | H66: =IF(OR('TL-System'!E7=0,'TL-System'!E32=0),"∞ dB",ROUND(-10*LOG10((4*'TL-System'!E7*'TL-System'!E32) / SUMSQ('TL-System'!E7+'TL-System'!E32,'TL-System'!E8+'TL-System'!E33) ),2 )&"dB" ) -> 1.91dB
G67: Impedance Mismatch Loss @ Load | H67: =IF(OR('TL-System'!E19=0,'TL-System'!E43=0),"∞ dB",ROUND(-10*LOG10((4*'TL-System'!E19*'TL-System'!E43) / SUMSQ('TL-System'!E19+'TL-System'!E43,'TL-System'!E20+'TL-System'!E44) ),2 )&"dB" ) -> 1.84dB
G68: TL Length Extension (User Form)
G69: Buffer, Transducer Loss (dB) | H69: =MIN(K301:K401) -> 2.052522461
G70: Required Extension in Length | H70: =IF(AND(Match_Mode=0,H37=1,H45,ISNUMBER('TL-System'!E64)),(INDEX(J301:J401,MATCH(MIN(K301:K401),K301:K401,0))-1)*'TL-System'!E11, "n/a" ) -> 0
G71: UF-Display: Required Extension in Length | H71: =IF(ISNUMBER(H70),ROUND(H70,2)&CHOOSE(MATCH('TL-System'!C11,G17:G21,0)," λ"," deg"," m"," feet"," nsec")&IF('TL-System'!E11=0,""," ("&ROUND(100*(H70/'TL-System'!E11),2)&"%)"), "n/a" ) -> 0 feet (0%)
G72: UF-Display: Merit of Reduction in System-Loss (dB) | H72: =IF(AND(ISNUMBER(H69),ISNUMBER(H70)),ROUND('TL-System'!E64-H69,2)&" dB", "n/a" ) -> 0 dB
G73: Feedline System Information (User Form), Tab 3
G74: Forward Power @ TL Output | H74: =IF(AND('TL-System'!E25<1,'TL-System'!E63>0),'TL-System'!E63/(1-('TL-System'!E25^2)-2*('TL-System'!E16/'TL-System'!E15)*'TL-System'!E24), IF(AND('TL-System'!E47<1,'TL-System'!E56>0,'TL-System'!E63=0),'TL-System'!E56*'TL-System'!E47/(1-('TL-System'!E47^2)), IF(AND('TL-System'!E56=0,'TL-System'!E63=0),4*'TL-System'!E7*'TL-System'!E15/(('TL-System'!E7+'TL-System'!E15)^2+('TL-System'!E8+'TL-System'!E16)^2), "n/av") ) ) -> 0.9633433278
G75: Forward Power @ TL Input | H75: =IF(ISNUMBER(H74),IF(H74=0,IF(Sw_dB,"-∞ dB","0%"), ROUND(IF(Sw_dB,10*LOG10(H74/'TL-System'!E47), 100*H74/'TL-System'!E47 ), IF(Sw_dB,2,1) )&IF(Sw_dB,"dB","%") ), "n/av" ) -> 101.2%
G76: Forward Power @ TL Output | H76: =IF(ISNUMBER(H74),IF(H74=0,IF(Sw_dB,"-∞ dB","0%"), ROUND(IF(Sw_dB,10*LOG10(H74), 100*H74 ), IF(Sw_dB,2,1) )&IF(Sw_dB,"dB","%") ), "n/av" ) -> 96.3%
G77: Return Power @ TL Input | H77: =IF(ISNUMBER(H74),IF(OR(H74=0,'TL-System'!E25=0),IF(Sw_dB,"-∞ dB","0%"), IF(AND(ABS(H74-'TL-System'!E63)>0,ABS(H74-'TL-System'!E63)<0.001),IF(Sw_dB,"<-30dB","<0.1%"), ROUND(IF(Sw_dB,10*LOG10((H74/'TL-System'!E47)-'TL-System'!E56), 100*((H74/'TL-System'!E47)-'TL-System'!E56) ), IF(Sw_dB,2,1) )&IF(Sw_dB,"dB","%") ) ), "n/av" ) -> 36.8%
G78: Return Power @ TL Output | H78: =IF(ISNUMBER(H74),IF(OR(H74=0,'TL-System'!E25=0),IF(Sw_dB,"-∞ dB","0%"), IF(AND(ABS(H74-'TL-System'!E63)>0,ABS(H74-'TL-System'!E63)<0.001),IF(Sw_dB,"<-30dB","<0.1%"), ROUND(IF(Sw_dB,10*LOG10(H74-'TL-System'!E63), 100*(H74-'TL-System'!E63) ), IF(Sw_dB,2,1) )&IF(Sw_dB,"dB","%") ) ), "n/av" ) -> 34%
G79: Power Pseudo Re-Reflection @Source | H79: =IF(OR(Match_Mode=1,Match_Mode=5),H77,"") -> 
G80: Switch("Sw_dB"): TRUE(for dB), or FALSE(for %) | H80: FALSE
G83: Worksheet "TL-Parameters" Support
G84: PHYSICAL LENGTH, l m
G85: PHYSICAL LENGTH, l feet
G86: Attenuation, α [Neper/m] | H86: =IF(ISNUMBER('TL-Parameters'!E19),'TL-Parameters'!E19/(100*8.686*IF('TL-Parameters'!D19="dB/100ft ",0.3048,1)),"") -> 0.00213775139
G87: Phase Constant, β (principal value) [rad/m] | H87: =IF(ISNUMBER('TL-Parameters'!E20),2*PI()*'TL-Parameters'!E8*1000000/(299792458*'TL-Parameters'!E20),"") -> 0.09169717031
G88: Phase Constant, β (alternative value #1) [rad/m] | H88: =IF(OR(H87="",'TL-Parameters'!E20="",'TL-Parameters'!E23=""),"", H87*('TL-Parameters'!E20/'TL-Parameters'!E23) ) -> 0.1947677954
G89: Phase Constant, β (alternative value #2) [rad/m] | H89: =IF(OR(H87="",'TL-Parameters'!E20="",'TL-Parameters'!E23=""),"", H87*('TL-Parameters'!E20/'TL-Parameters'!E24) ) -> 0.2978384205
G90: Phase Constant, β (alternative value #K) [rad/m] | H90: =IF(OR(H87="",'TL-Parameters'!E20="",'TL-Parameters'!E25=""),"", H87*('TL-Parameters'!E20/'TL-Parameters'!E25) ) -> 0.09169717031
G91: Failed Validat. for Phase Constant, β (altern. value #1) | H91: =IF(OR('TL-Parameters'!E17="",'TL-Parameters'!E18="",H86="",H88=""),"", ABS('TL-Parameters'!E18)>'TL-Parameters'!E17*IF(OR(H86=0,H88=0),0,MIN(H86/H88,H88/H86)) ) -> TRUE
G92: Failed Validat. for Phase Constant, β (altern. value #2) | H92: =IF(OR('TL-Parameters'!E17="",'TL-Parameters'!E18="",H86="",H88=""),"", ABS('TL-Parameters'!E18)>'TL-Parameters'!E17*IF(OR(H86=0,H89=0),0,MIN(H86/H89,H89/H86)) ) -> TRUE
G93: Failed Validat. for Phase Constant, β (altern. value #K) | H93: =IF(OR('TL-Parameters'!E17="",'TL-Parameters'!E18="",H86="",H90=""),"", ABS('TL-Parameters'!E18)>'TL-Parameters'!E17*IF(OR(H86=0,H90=0),0,MIN(H86/H90,H90/H86)) ) -> FALSE
G95: PHYSICAL LENGTH, l m
G96: PHYSICAL LENGTH, l feet
G98: Filled cells have Name
P194: =IF(AND('TL-System'!E11=0,H37=1)," ", " Matched Line" ) -> Matched Line
P195: =IF(ISNUMBER(K301)," Nominal Case"," ") -> Nominal Case
P196: =IF(OR(H45=FALSE,H46>10,COUNTIF(O201:O401,"#N/A")=201,AND('TL-System'!E11=0,H37=1))," ", " Transducer Loss" ) -> Transducer Loss
I197: For Chart-Display | P197: =IF(AND(COUNTIF(Q201:Q401,"#N/A")<201,OR(AND(H37=1,'TL-System'!E11>0),AND(H37=2,'TL-System'!E13>0)))," ARRL Equation", " " ) -> ARRL Equation
Q198: =IF('TL-System'!E25>1,#N/A, IFERROR('TL-System'!E47 * (1-('TL-System'!E25^2)) / (1-('TL-System'!E47*'TL-System'!E25)^2), #N/A ) ) -> 0.900758474
I199: y1mem | J199: x | K199: y1 | L199: y2 | M199: y3 | Q199: =IF(AND(ISNUMBER(Q198),Q198>1E-20),-10*LOG10(Q198), #N/A ) -> 0.4539164349
I200: Memory | J200: normaliz. | K200: L(η1d2η3) | L200: Matched | M200: ARRL | N200: η1d2 | O200: L(η1d2η3) | P200: L(η1d2η3) | Q200: ARRL
I201: -1 | J201: 0 | K201: =CHOOSE($H$37,IF(AND($H$46<=10,P201<200),P201,#N/A), IF(AND(P201<200,J201>=$H$38,J201<=$I$38),P201,#N/A) ) -> 1.938200341 | L201: 0 | M201: =Q201 -> 0 | N201: 1 | O201: 1.938200341 | P201: =IF(AND($H$45,N201>=0,N201<=1.01),O201,#N/A) -> 1.938200341 | Q201: 0
I202: -1 | J202: 0.01 | K202: =CHOOSE($H$37,IF(AND($H$46<=10,P202<200),P202,#N/A),IF(AND(P202<200,J202>=$H$38,J202<=$I$38),P202,#N/A)) -> 1.939562448 | L202: 0.002152495606 | M202: =Q202 -> 0.004727556822 | N202: 0.9995074255 | O202: 1.939562448 | P202: =IF(AND($H$45,N202>=0,N202<=1.01),O202,#N/A) -> 1.939562448 | Q202: 0.004727556822
I203: -1 | J203: 0.02 | K203: =CHOOSE($H$37,IF(AND($H$46<=10,P203<200),P203,#N/A),IF(AND(P203<200,J203>=$H$38,J203<=$I$38),P203,#N/A)) -> 1.940902257 | L203: 0.004304991212 | M203: =Q203 -> 0.009451038201 | N203: 0.9990314351 | O203: 1.940902257 | P203: =IF(AND($H$45,N203>=0,N203<=1.01),O203,#N/A) -> 1.940902257 | Q203: 0.009451038201
I204: -1 | J204: 0.03 | K204: 1.942220179 | L204: 0.006457486818 | M204: 0.01417045299 | N204: 0.998571696 | O204: 1.942220179 | P204: 1.942220179 | Q204: 0.01417045299
I205: -1 | J205: 0.04 | K205: 1.94351664 | L205: 0.008609982424 | M205: 0.01888581003 | N205: 0.9981278701 | O205: 1.94351664 | P205: 1.94351664 | Q205: 0.01888581003
I206: -1 | J206: 0.05 | K206: 1.944792073 | L206: 0.01076247803 | M206: 0.0235971181 | N206: 0.9976996143 | O206: 1.944792073 | P206: 1.944792073 | Q206: 0.0235971181
I207: -1 | J207: 0.06 | K207: 1.946046922 | L207: 0.01291497364 | M207: 0.028304386 | N207: 0.9972865803 | O207: 1.946046922 | P207: 1.946046922 | Q207: 0.028304386
I208: -1 | J208: 0.07 | K208: 1.947281641 | L208: 0.01506746924 | M208: 0.03300762246 | N208: 0.9968884147 | O208: 1.947281641 | P208: 1.947281641 | Q208: 0.03300762246
I209: -1 | J209: 0.08 | K209: 1.948496693 | L209: 0.01721996485 | M209: 0.03770683621 | N209: 0.9965047592 | O209: 1.948496693 | P209: 1.948496693 | Q209: 0.03770683621
I210: -1 | J210: 0.09 | K210: 1.949692551 | L210: 0.01937246045 | M210: 0.04240203595 | N210: 0.9961352506 | O210: 1.949692551 | P210: 1.949692551 | Q210: 0.04240203595
I211: -1 | J211: 0.1 | K211: 1.950869697 | L211: 0.02152495606 | M211: 0.04709323034 | N211: 0.995779521 | O211: 1.950869697 | P211: 1.950869697 | Q211: 0.04709323034
I212: -1 | J212: 0.11 | K212: 1.952028622 | L212: 0.02367745167 | M212: 0.05178042803 | N212: 0.9954371978 | O212: 1.952028622 | P212: 1.952028622 | Q212: 0.05178042803
I213: -1 | J213: 0.12 | K213: 1.953169824 | L213: 0.02582994727 | M213: 0.05646363764 | N213: 0.9951079037 | O213: 1.953169824 | P213: 1.953169824 | Q213: 0.05646363764
I214: -1 | J214: 0.13 | K214: 1.954293812 | L214: 0.02798244288 | M214: 0.06114286776 | N214: 0.9947912571 | O214: 1.954293812 | P214: 1.954293812 | Q214: 0.06114286776
I215: -1 | J215: 0.14 | K215: 1.955401102 | L215: 0.03013493848 | M215: 0.06581812695 | N215: 0.9944868719 | O215: 1.955401102 | P215: 1.955401102 | Q215: 0.06581812695
I216: -1 | J216: 0.15 | K216: 1.956492218 | L216: 0.03228743409 | M216: 0.07048942376 | N216: 0.9941943576 | O216: 1.956492218 | P216: 1.956492218 | Q216: 0.07048942376
I217: -1 | J217: 0.16 | K217: 1.957567691 | L217: 0.0344399297 | M217: 0.0751567667 | N217: 0.9939133197 | O217: 1.957567691 | P217: 1.957567691 | Q217: 0.0751567667
I218: -1 | J218: 0.17 | K218: 1.958628062 | L218: 0.0365924253 | M218: 0.07982016425 | N218: 0.9936433596 | O218: 1.958628062 | P218: 1.958628062 | Q218: 0.07982016425
I219: -1 | J219: 0.18 | K219: 1.959673875 | L219: 0.03874492091 | M219: 0.08447962489 | N219: 0.9933840746 | O219: 1.959673875 | P219: 1.959673875 | Q219: 0.08447962489
I220: -1 | J220: 0.19 | K220: 1.960705686 | L220: 0.04089741651 | M220: 0.08913515705 | N220: 0.9931350584 | O220: 1.960705686 | P220: 1.960705686 | Q220: 0.08913515705
I221: -1 | J221: 0.2 | K221: 1.961724053 | L221: 0.04304991212 | M221: 0.09378676915 | N221: 0.9928959008 | O221: 1.961724053 | P221: 1.961724053 | Q221: 0.09378676915
I222: -1 | J222: 0.21 | K222: 1.962729543 | L222: 0.04520240773 | M222: 0.09843446957 | N222: 0.9926661881 | O222: 1.962729543 | P222: 1.962729543 | Q222: 0.09843446957
I223: -1 | J223: 0.22 | K223: 1.96372273 | L223: 0.04735490333 | M223: 0.1030782667 | N223: 0.9924455031 | O223: 1.96372273 | P223: 1.96372273 | Q223: 0.1030782667
I224: -1 | J224: 0.23 | K224: 1.964704191 | L224: 0.04950739894 | M224: 0.1077181688 | N224: 0.9922334254 | O224: 1.964704191 | P224: 1.964704191 | Q224: 0.1077181688
I225: -1 | J225: 0.24 | K225: 1.965674512 | L225: 0.05165989454 | M225: 0.1123541843 | N225: 0.9920295311 | O225: 1.965674512 | P225: 1.965674512 | Q225: 0.1123541843
I226: -1 | J226: 0.25 | K226: 1.966634281 | L226: 0.05381239015 | M226: 0.1169863214 | N226: 0.9918333936 | O226: 1.966634281 | P226: 1.966634281 | Q226: 0.1169863214
I227: -1 | J227: 0.26 | K227: 1.967584094 | L227: 0.05596488576 | M227: 0.1216145884 | N227: 0.9916445834 | O227: 1.967584094 | P227: 1.967584094 | Q227: 0.1216145884
I228: -1 | J228: 0.27 | K228: 1.968524549 | L228: 0.05811738136 | M228: 0.1262389935 | N228: 0.9914626679 | O228: 1.968524549 | P228: 1.968524549 | Q228: 0.1262389935
I229: -1 | J229: 0.28 | K229: 1.969456251 | L229: 0.06026987697 | M229: 0.130859545 | N229: 0.9912872123 | O229: 1.969456251 | P229: 1.969456251 | Q229: 0.130859545
I230: -1 | J230: 0.29 | K230: 1.970379808 | L230: 0.06242237257 | M230: 0.135476251 | N230: 0.9911177792 | O230: 1.970379808 | P230: 1.970379808 | Q230: 0.135476251
I231: -1 | J231: 0.3 | K231: 1.971295832 | L231: 0.06457486818 | M231: 0.1400891197 | N231: 0.9909539289 | O231: 1.971295832 | P231: 1.971295832 | Q231: 0.1400891197
I232: -1 | J232: 0.31 | K232: 1.972204939 | L232: 0.06672736379 | M232: 0.1446981593 | N232: 0.9907952198 | O232: 1.972204939 | P232: 1.972204939 | Q232: 0.1446981593
I233: -1 | J233: 0.32 | K233: 1.973107748 | L233: 0.06887985939 | M233: 0.1493033778 | N233: 0.9906412081 | O233: 1.973107748 | P233: 1.973107748 | Q233: 0.1493033778
I234: -1 | J234: 0.33 | K234: 1.974004881 | L234: 0.071032355 | M234: 0.1539047834 | N234: 0.9904914485 | O234: 1.974004881 | P234: 1.974004881 | Q234: 0.1539047834
I235: -1 | J235: 0.34 | K235: 1.974896962 | L235: 0.0731848506 | M235: 0.1585023841 | N235: 0.990345494 | O235: 1.974896962 | P235: 1.974896962 | Q235: 0.1585023841
I236: -1 | J236: 0.35 | K236: 1.97578462 | L236: 0.07533734621 | M236: 0.163096188 | N236: 0.9902028964 | O236: 1.97578462 | P236: 1.97578462 | Q236: 0.163096188
I237: -1 | J237: 0.36 | K237: 1.976668482 | L237: 0.07748984182 | M237: 0.1676862032 | N237: 0.9900632061 | O237: 1.976668482 | P237: 1.976668482 | Q237: 0.1676862032
I238: -1 | J238: 0.37 | K238: 1.977549181 | L238: 0.07964233742 | M238: 0.1722724375 | N238: 0.9899259725 | O238: 1.977549181 | P238: 1.977549181 | Q238: 0.1722724375
I239: -1 | J239: 0.38 | K239: 1.978427348 | L239: 0.08179483303 | M239: 0.176854899 | N239: 0.9897907446 | O239: 1.978427348 | P239: 1.978427348 | Q239: 0.176854899
I240: -1 | J240: 0.39 | K240: 1.979303619 | L240: 0.08394732863 | M240: 0.1814335956 | N240: 0.9896570704 | O240: 1.979303619 | P240: 1.979303619 | Q240: 0.1814335956
I241: -1 | J241: 0.4 | K241: 1.980178627 | L241: 0.08609982424 | M241: 0.1860085353 | N241: 0.9895244976 | O241: 1.980178627 | P241: 1.980178627 | Q241: 0.1860085353
I242: -1 | J242: 0.41 | K242: 1.981053007 | L242: 0.08825231985 | M242: 0.190579726 | N242: 0.9893925741 | O242: 1.981053007 | P242: 1.981053007 | Q242: 0.190579726
I243: -1 | J243: 0.42 | K243: 1.981927396 | L243: 0.09040481545 | M243: 0.1951471756 | N243: 0.9892608473 | O243: 1.981927396 | P243: 1.981927396 | Q243: 0.1951471756
I244: -1 | J244: 0.43 | K244: 1.982802428 | L244: 0.09255731106 | M244: 0.1997108918 | N244: 0.9891288653 | O244: 1.982802428 | P244: 1.982802428 | Q244: 0.1997108918
I245: -1 | J245: 0.44 | K245: 1.983678738 | L245: 0.09470980666 | M245: 0.2042708826 | N245: 0.9889961766 | O245: 1.983678738 | P245: 1.983678738 | Q245: 0.2042708826
I246: -1 | J246: 0.45 | K246: 1.984556961 | L246: 0.09686230227 | M246: 0.2088271558 | N246: 0.9888623303 | O246: 1.984556961 | P246: 1.984556961 | Q246: 0.2088271558
I247: -1 | J247: 0.46 | K247: 1.985437731 | L247: 0.09901479788 | M247: 0.2133797192 | N247: 0.9887268768 | O247: 1.985437731 | P247: 1.985437731 | Q247: 0.2133797192
I248: -1 | J248: 0.47 | K248: 1.986321678 | L248: 0.1011672935 | M248: 0.2179285804 | N248: 0.9885893672 | O248: 1.986321678 | P248: 1.986321678 | Q248: 0.2179285804
I249: -1 | J249: 0.48 | K249: 1.987209434 | L249: 0.1033197891 | M249: 0.2224737474 | N249: 0.9884493546 | O249: 1.987209434 | P249: 1.987209434 | Q249: 0.2224737474
I250: -1 | J250: 0.49 | K250: 1.988101626 | L250: 0.1054722847 | M250: 0.2270152278 | N250: 0.9883063932 | O250: 1.988101626 | P250: 1.988101626 | Q250: 0.2270152278
I251: -1 | J251: 0.5 | K251: 1.988998881 | L251: 0.1076247803 | M251: 0.2315530292 | N251: 0.9881600397 | O251: 1.988998881 | P251: 1.988998881 | Q251: 0.2315530292
I252: -1 | J252: 0.51 | K252: 1.989901821 | L252: 0.1097772759 | M252: 0.2360871595 | N252: 0.9880098527 | O252: 1.989901821 | P252: 1.989901821 | Q252: 0.2360871595
I253: -1 | J253: 0.52 | K253: 1.990811068 | L253: 0.1119297715 | M253: 0.2406176262 | N253: 0.987855393 | O253: 1.990811068 | P253: 1.990811068 | Q253: 0.2406176262
I254: -1 | J254: 0.53 | K254: 1.991727239 | L254: 0.1140822671 | M254: 0.245144437 | N254: 0.9876962246 | O254: 1.991727239 | P254: 1.991727239 | Q254: 0.245144437
I255: -1 | J255: 0.54 | K255: 1.992650947 | L255: 0.1162347627 | M255: 0.2496675994 | N255: 0.9875319141 | O255: 1.992650947 | P255: 1.992650947 | Q255: 0.2496675994
I256: -1 | J256: 0.55 | K256: 1.993582803 | L256: 0.1183872583 | M256: 0.2541871212 | N256: 0.9873620312 | O256: 1.993582803 | P256: 1.993582803 | Q256: 0.2541871212
I257: -1 | J257: 0.56 | K257: 1.994523411 | L257: 0.1205397539 | M257: 0.2587030098 | N257: 0.9871861494 | O257: 1.994523411 | P257: 1.994523411 | Q257: 0.2587030098
I258: -1 | J258: 0.57 | K258: 1.995473372 | L258: 0.1226922495 | M258: 0.2632152728 | N258: 0.9870038455 | O258: 1.995473372 | P258: 1.995473372 | Q258: 0.2632152728
I259: -1 | J259: 0.58 | K259: 1.996433284 | L259: 0.1248447451 | M259: 0.2677239178 | N259: 0.9868147008 | O259: 1.996433284 | P259: 1.996433284 | Q259: 0.2677239178
I260: -1 | J260: 0.59 | K260: 1.997403737 | L260: 0.1269972408 | M260: 0.2722289521 | N260: 0.9866183003 | O260: 1.997403737 | P260: 1.997403737 | Q260: 0.2722289521
I261: -1 | J261: 0.6 | K261: 1.998385317 | L261: 0.1291497364 | M261: 0.2767303834 | N261: 0.9864142337 | O261: 1.998385317 | P261: 1.998385317 | Q261: 0.2767303834
I262: -1 | J262: 0.61 | K262: 1.999378604 | L262: 0.131302232 | M262: 0.2812282191 | N262: 0.9862020957 | O262: 1.999378604 | P262: 1.999378604 | Q262: 0.2812282191
I263: -1 | J263: 0.62 | K263: 2.000384172 | L263: 0.1334547276 | M263: 0.2857224666 | N263: 0.9859814857 | O263: 2.000384172 | P263: 2.000384172 | Q263: 0.2857224666
I264: -1 | J264: 0.63 | K264: 2.001402589 | L264: 0.1356072232 | M264: 0.2902131333 | N264: 0.9857520084 | O264: 2.001402589 | P264: 2.001402589 | Q264: 0.2902131333
I265: -1 | J265: 0.64 | K265: 2.002434416 | L265: 0.1377597188 | M265: 0.2947002266 | N265: 0.9855132744 | O265: 2.002434416 | P265: 2.002434416 | Q265: 0.2947002266
I266: -1 | J266: 0.65 | K266: 2.003480207 | L266: 0.1399122144 | M266: 0.299183754 | N266: 0.9852648996 | O266: 2.003480207 | P266: 2.003480207 | Q266: 0.299183754
I267: -1 | J267: 0.66 | K267: =CHOOSE($H$37,IF(AND($H$46<=10,P267<200),P267,#N/A),IF(AND(P267<200,J267>=$H$38,J267<=$I$38),P267,#N/A)) -> 2.004540509 | L267: 0.14206471 | M267: =Q267 -> 0.3036637227 | N267: 0.9850065065 | O267: 2.004540509 | P267: =IF(AND($H$45,N267>=0,N267<=1.01),O267,#N/A) -> 2.004540509 | Q267: 0.3036637227
I268: -1 | J268: 0.67 | K268: 2.005615861 | L268: 0.1442172056 | M268: 0.3081401401 | N268: 0.9847377235 | O268: 2.005615861 | P268: 2.005615861 | Q268: 0.3081401401
I269: -1 | J269: 0.68 | K269: 2.006706795 | L269: 0.1463697012 | M269: 0.3126130135 | N269: 0.9844581858 | O269: 2.006706795 | P269: 2.006706795 | Q269: 0.3126130135
I270: -1 | J270: 0.69 | K270: 2.007813836 | L270: 0.1485221968 | M270: 0.3170823503 | N270: 0.9841675354 | O270: 2.007813836 | P270: 2.007813836 | Q270: 0.3170823503
I271: -1 | J271: 0.7 | K271: 2.008937497 | L271: 0.1506746924 | M271: 0.3215481576 | N271: 0.9838654214 | O271: 2.008937497 | P271: 2.008937497 | Q271: 0.3215481576
I272: -1 | J272: 0.71 | K272: 2.010078286 | L272: 0.152827188 | M272: 0.3260104427 | N272: 0.9835515003 | O272: 2.010078286 | P272: 2.010078286 | Q272: 0.3260104427
I273: -1 | J273: 0.72 | K273: 2.011236701 | L273: 0.1549796836 | M273: 0.3304692129 | N273: 0.9832254361 | O273: 2.011236701 | P273: 2.011236701 | Q273: 0.3304692129
I274: -1 | J274: 0.73 | K274: 2.01241323 | L274: 0.1571321792 | M274: 0.3349244754 | N274: 0.9828869005 | O274: 2.01241323 | P274: 2.01241323 | Q274: 0.3349244754
I275: -1 | J275: 0.74 | K275: 2.013608353 | L275: 0.1592846748 | M275: 0.3393762373 | N275: 0.9825355737 | O275: 2.013608353 | P275: 2.013608353 | Q275: 0.3393762373
I276: -1 | J276: 0.75 | K276: 2.014822539 | L276: 0.1614371704 | M276: 0.3438245059 | N276: 0.9821711437 | O276: 2.014822539 | P276: 2.014822539 | Q276: 0.3438245059
I277: -1 | J277: 0.76 | K277: 2.016056249 | L277: 0.1635896661 | M277: 0.3482692882 | N277: 0.9817933074 | O277: 2.016056249 | P277: 2.016056249 | Q277: 0.3482692882
I278: -1 | J278: 0.77 | K278: 2.017309932 | L278: 0.1657421617 | M278: 0.3527105914 | N278: 0.9814017702 | O278: 2.017309932 | P278: 2.017309932 | Q278: 0.3527105914
I279: -1 | J279: 0.78 | K279: 2.018584027 | L279: 0.1678946573 | M279: 0.3571484227 | N279: 0.9809962468 | O279: 2.018584027 | P279: 2.018584027 | Q279: 0.3571484227
I280: -1 | J280: 0.79 | K280: 2.019878963 | L280: 0.1700471529 | M280: 0.361582789 | N280: 0.9805764606 | O280: 2.019878963 | P280: 2.019878963 | Q280: 0.361582789
I281: -1 | J281: 0.8 | K281: 2.021195157 | L281: 0.1721996485 | M281: 0.3660136975 | N281: 0.9801421448 | O281: 2.021195157 | P281: 2.021195157 | Q281: 0.3660136975
I282: -1 | J282: 0.81 | K282: 2.022533018 | L282: 0.1743521441 | M282: 0.3704411553 | N282: 0.9796930421 | O282: 2.022533018 | P282: 2.022533018 | Q282: 0.3704411553
I283: -1 | J283: 0.82 | K283: 2.02389294 | L283: 0.1765046397 | M283: 0.3748651692 | N283: 0.979228905 | O283: 2.02389294 | P283: 2.02389294 | Q283: 0.3748651692
I284: -1 | J284: 0.83 | K284: 2.025275307 | L284: 0.1786571353 | M284: 0.3792857465 | N284: 0.9787494957 | O284: 2.025275307 | P284: 2.025275307 | Q284: 0.3792857465
I285: -1 | J285: 0.84 | K285: 2.026680492 | L285: 0.1808096309 | M285: 0.3837028939 | N285: 0.978254587 | O285: 2.026680492 | P285: 2.026680492 | Q285: 0.3837028939
I286: -1 | J286: 0.85 | K286: 2.028108855 | L286: 0.1829621265 | M286: 0.3881166186 | N286: 0.9777439616 | O286: 2.028108855 | P286: 2.028108855 | Q286: 0.3881166186
I287: -1 | J287: 0.86 | K287: 2.029560745 | L287: 0.1851146221 | M287: 0.3925269275 | N287: 0.9772174131 | O287: 2.029560745 | P287: 2.029560745 | Q287: 0.3925269275
I288: -1 | J288: 0.87 | K288: 2.031036498 | L288: 0.1872671177 | M288: 0.3969338274 | N288: 0.9766747454 | O288: 2.031036498 | P288: 2.031036498 | Q288: 0.3969338274
I289: -1 | J289: 0.88 | K289: 2.032536438 | L289: 0.1894196133 | M289: 0.4013373254 | N289: 0.9761157734 | O289: 2.032536438 | P289: 2.032536438 | Q289: 0.4013373254
I290: -1 | J290: 0.89 | K290: 2.034060875 | L290: 0.1915721089 | M290: 0.4057374283 | N290: 0.9755403227 | O290: 2.034060875 | P290: 2.034060875 | Q290: 0.4057374283
I291: -1 | J291: 0.9 | K291: 2.035610108 | L291: 0.1937246045 | M291: 0.4101341429 | N291: 0.9749482302 | O291: 2.035610108 | P291: 2.035610108 | Q291: 0.4101341429
I292: -1 | J292: 0.91 | K292: 2.037184424 | L292: 0.1958771001 | M292: 0.4145274761 | N292: 0.9743393439 | O292: 2.037184424 | P292: 2.037184424 | Q292: 0.4145274761
I293: -1 | J293: 0.92 | K293: 2.038784093 | L293: 0.1980295958 | M293: 0.4189174348 | N293: 0.973713523 | O293: 2.038784093 | P293: 2.038784093 | Q293: 0.4189174348
I294: -1 | J294: 0.93 | K294: 2.040409376 | L294: 0.2001820914 | M294: 0.4233040258 | N294: 0.9730706383 | O294: 2.040409376 | P294: 2.040409376 | Q294: 0.4233040258
I295: -1 | J295: 0.94 | K295: 2.042060517 | L295: 0.202334587 | M295: 0.4276872559 | N295: 0.9724105717 | O295: 2.042060517 | P295: 2.042060517 | Q295: 0.4276872559
I296: -1 | J296: 0.95 | K296: 2.04373775 | L296: 0.2044870826 | M296: 0.4320671318 | N296: 0.9717332171 | O296: 2.04373775 | P296: 2.04373775 | Q296: 0.4320671318
I297: -1 | J297: 0.96 | K297: 2.045441293 | L297: 0.2066395782 | M297: 0.4364436603 | N297: 0.9710384797 | O297: 2.045441293 | P297: 2.045441293 | Q297: 0.4364436603
I298: -1 | J298: 0.97 | K298: 2.047171352 | L298: 0.2087920738 | M298: 0.4408168481 | N298: 0.9703262766 | O298: 2.047171352 | P298: 2.047171352 | Q298: 0.4408168481
I299: -1 | J299: 0.98 | K299: 2.048928116 | L299: 0.2109445694 | M299: 0.4451867021 | N299: 0.9695965365 | O299: 2.048928116 | P299: 2.048928116 | Q299: 0.4451867021
I300: -1 | J300: 0.99 | K300: 2.050711765 | L300: 0.213097065 | M300: 0.4495532287 | N300: 0.9688491999 | O300: 2.050711765 | P300: 2.050711765 | Q300: 0.4495532287
I301: -1 | J301: 1 | K301: 2.052522461 | L301: 0.2152495606 | M301: 0.4539164349 | N301: 0.9680842191 | O301: 2.052522461 | P301: 2.052522461 | Q301: 0.4539164349
I302: -1 | J302: 1.01 | K302: 2.054360352 | L302: 0.2174020562 | M302: 0.4582763272 | N302: 0.9673015584 | O302: 2.054360352 | P302: 2.054360352 | Q302: 0.4582763272
... 99 more rows
